[Event "POR-chT 1st Divison 2018"]
[Site "Maia"]
[Date "2018.07.16"]
[Round "1"]
[White "Padeiro, Jose Joao Tato"]
[Black "Vassallo Barroche, Mauricio"]
[Result "0-1"]
[ECO "E81"]
[WhiteElo "2284"]
[BlackElo "2386"]
[Annotator "ChessBase"]
[PlyCount "48"]
[EventDate "2018.07.16"]
[EventType "team-tourn"]
[EventCountry "POR"]
[SourceTitle "playchess.com"]
[Source "ChessBase"]
[SourceQuality "1"]
[TimeControl "5400+30"]

1. d4 {[%emt 0:00:00]} Nf6 {[%emt 0:01:34]} 2. c4 {[%emt 0:00:00]} g6 {[%emt 0:01:46]} 3. Nc3 {[%emt 0:00:53]} Bg7 {[%emt 0:00:32]} 4. e4 {[%emt 0:00:09]} d6 {[%emt 0:02:22]} 5. f3 {[%emt 0:00:15]} O-O {[%emt 0:00:38]} 6. Bg5 {[%emt 0:00:06]} c5 {[%emt 0:04:19]} 7. d5 {[%emt 0:00:16]} e6 {[%emt 0:00:06]} 8. Qd2 {[%emt 0:00:48]} exd5 {[%emt 0:00:07]} 9. cxd5 {[%emt 0:00:05]} a6 {[%emt 0:00:49]} 10. a4 {[%emt 0:00:05]} Re8 {[%emt 0:00:08]} 11. Nge2 {[%emt 0:06:24]} Nbd7 {[%emt 0:02:04]} 12. Ng3 {[%emt 0:01:32]} Qa5 {[%emt 0:00:11]} 13. Ra3 {[%emt 0:01:13]} h5 {[%emt 0:03:46]} 14. Be2 {[%emt 0:07:50]} Nh7 {[%emt 0:00:22]} 15. Be3 {[%emt 0:04:22]} h4 {[%emt 0:03:11]} 16. Nf1 {[%emt 0:00:36]} Ne5 {[%emt 0:00:07]} 17. Bf2 {[%emt 0:11:04]} Qd8 {[%emt 0:04:49]} 18. h3 {[%emt 0:05:09]} f5 {[%emt 0:08:46]} 19. Nh2 {[%emt 0:05:39]} g5 {[%emt 0:25:46]} 20. exf5 {[%emt 0:04:06]} Nc4 {[%emt 0:00:18]} 21. Qd3 {[%emt 0:09:41]} Nxa3 {[%emt 0:04:35]} 22. O-O {[%emt 0:00:11]} c4 {[%emt 0:03:09]} 23. Qd2 {[%emt 0:02:06]} Bxf5 {[%emt 0:00:29]} 24. Bd1 {[%emt 0:01:37]} Nb1 {[%emt 0:00:49]} 0-1

[Event "POR-chT 1st Divison 2018"]
[Site "Maia"]
[Date "2018.07.16"]
[Round "1"]
[White "Ribeiro, Fernando"]
[Black "Espineira Gonzalez, Diego Adrian"]
[Result "0-1"]
[ECO "C00"]
[WhiteElo "2165"]
[BlackElo "2327"]
[Annotator "NA"]
[PlyCount "64"]
[EventDate "2018.07.16"]
[EventType "team-tourn"]
[EventCountry "POR"]
[SourceTitle "playchess.com"]
[Source "ChessBase"]
[SourceQuality "1"]
[TimeControl "5400+30"]

1. e4 {[%emt 0:00:00]} e6 {[%emt 0:00:00]} 2. d3 {[%emt 0:01:42]} d5 {[%emt 0:00:00]} 3. Nd2 {[%emt 0:00:11]} Nf6 {[%emt 0:00:00]} 4. Ngf3 {[%emt 0:01:21]} Nc6 {[%emt 0:00:00]} 5. g3 {[%emt 0:00:41]} dxe4 {[%emt 0:00:58]} 6. dxe4 {[%emt 0:02:17]} Bc5 {[%emt 0:00:10]} 7. Bg2 {[%emt 0:22:25]} O-O {[%emt 0:00:23]} 8. O-O {[%emt 0:00:23]} e5 {[%emt 0:00:06]} 9. c3 {[%emt 0:00:52]} a5 {[%emt 0:00:15]} 10. a4 {[%emt 0:01:48]} b6 {[%emt 0:01:32]} 11. Qe2 {[%emt 0:16:36]} Ba6 {[%emt 0:00:46]} 12. Nc4 {[%emt 0:00:22]} Qe7 {[%emt 0:00:13]} 13. b3 {[%emt 0:04:25] C00: Französische Verteidigung (Seltene Züge)} (13. h3 Ne8 14. b3 Nd6 15. Nfd2 Qe6 16. Re1 f5 17. Ba3 f4 18. Bxc5 bxc5 19. Bf1 Kh8 20. g4 Nxc4 21. Nxc4 {½-½ (41) Pinter,G (2363)-Rendle,T (2400) England 2011}) 13... Qe6 {[%emt 0:06:28]} 14. Nfd2 {[%emt 0:06:00]} Rfd8 {[%emt 0:02:35]} 15. h3 {[%emt 0:08:08]} Rd7 {[%emt 0:01:09]} 16. Ra2 $146 {[%emt 0:13:21]} ({Vorgänger:} 16. Re1 Rad8 17. Bf1 Rd3 18. Qxd3 Rxd3 19. Bxd3 Qxh3 20. Nf1 h5 {0-1 (41) Muhren,W-Sutmuller,J Helmondsee 2000}) 16... Rad8 {[%emt 0:00:52]} 17. Rc2 {[%emt 0:00:15]} Ne8 {[%emt 0:21:05]} 18. Re1 {[%emt 0:01:16]} Nd6 {[%emt 0:00:50]} (18... Rd3 $17 19. Kh2 b5 20. axb5 Bxb5) 19. Bf1 {[%emt 0:00:25]} f5 {[%emt 0:05:15]} 20. Qh5 {[%emt 0:04:22]} g6 {[%emt 0:08:03]} 21. Qh4 {[%emt 0:00:30]} Nf7 {[%emt 0:03:16]} 22. Nf3 {[%emt 0:00:23]} Rd1 {[%emt 0:02:22]} 23. Rxd1 $19 {[%emt 0:05:27]} ({White should try} 23. Rd2 $15 R8xd2 24. Bxd2 Rxe1 25. Bxe1) 23... Rxd1 {[%emt 0:00:20]} 24. Kg2 {[%emt 0:00:01]} Qd7 {[%emt 0:09:39]} 25. Rd2 {[%emt 0:03:39]} Rxd2 {[%emt 0:00:14]} 26. Bxd2 {[%emt 0:00:04]} Be7 {[%emt 0:00:28]} 27. Ng5 {[%emt 0:00:20]} h6 {[%emt 0:01:13]} 28. exf5 {[%emt 0:00:52]} hxg5 {[%emt 0:01:00]} 29. Qe4 {[%emt 0:00:11]} gxf5 {[%emt 0:00:55]} 30. Qc2 {[%emt 0:00:02]} Bb7 {[%emt 0:02:09]} 31. f3 {[%emt 0:00:10]} e4 {[%emt 0:00:17]} 32. f4 {[%emt 0:00:23]} e3 {[%emt 0:00:08]} 0-1

[Event "POR-chT 1st Divison 2018"]
[Site "Maia"]
[Date "2018.07.16"]
[Round "1"]
[White "Galvao, Henrique"]
[Black "Lombaers, Peter"]
[Result "0-1"]
[ECO "B22"]
[WhiteElo "2161"]
[BlackElo "2361"]
[Annotator "NA"]
[PlyCount "66"]
[EventDate "2018.07.16"]
[EventType "team-tourn"]
[EventCountry "POR"]
[SourceTitle "playchess.com"]
[Source "ChessBase"]
[SourceQuality "1"]
[TimeControl "5400+30"]

1. e4 {[%emt 0:00:00]} c5 {[%emt 0:00:00]} 2. c3 {[%emt 0:00:18]} Nf6 {[%emt 0:00:00]} 3. e5 {[%emt 0:00:04]} Nd5 {[%emt 0:00:00]} 4. d4 {[%emt 0:00:32]} cxd4 {[%emt 0:00:00]} 5. Qxd4 {[%emt 0:00:06]} e6 {[%emt 0:01:16]} 6. Nf3 {[%emt 0:00:08]} Nc6 {[%emt 0:05:59]} 7. Qe4 {[%emt 0:00:06]} d6 {[%emt 0:03:21]} 8. c4 {[%emt 0:04:17]} Ndb4 {[%emt 0:04:27] B22: Sicilian: 2 c3} (8... Qa5+ 9. Bd2 Ndb4 10. Nc3 Nxe5 11. Be2 f5 12. Qb1 Qd8 13. O-O Nf7 14. Nd1 Nc6 15. Bc3 Nfe5 16. Ne3 {½-½ (54) Soltau,A (2618)-Van Oosterom,J (2725) ICCF corr 2003}) 9. exd6 {[%emt 0:01:50]} Bxd6 {[%emt 0:03:44]} 10. Nc3 {[%emt 0:01:22]} f5 {[%emt 0:07:58]} 11. Qb1 {[%emt 0:00:21]} O-O {[%emt 0:01:06]} 12. a3 {[%emt 0:01:25]} Na6 {[%emt 0:00:42]} 13. Be2 {[%emt 0:00:07]} e5 {[%emt 0:09:28]} 14. b4 $146 {[%emt 0:04:06]} ({Predecessor:} 14. Qa2 Be7 15. O-O Nc7 16. Rd1 {0-1 (47) Barrenechea Bahamonde,G (2221)-Astasio Lopez,D (2397) Elgoibar 2013}) 14... e4 {[%emt 0:03:33]} 15. Ng5 {[%emt 0:06:24]} Naxb4 {[%emt 0:05:12]} 16. c5 {[%emt 0:03:29]} Be5 {[%emt 0:06:13]} 17. Qb3+ {[%emt 0:02:32]} Kh8 {[%emt 0:00:09]} 18. axb4 {[%emt 0:00:08]} Nd4 {[%emt 0:04:34]} 19. Qa2 {[%emt 0:01:16]} Ne6 {[%emt 0:02:17]} 20. Bd2 {[%emt 0:27:27]} Nxg5 {[%emt 0:04:12]} 21. Rc1 {[%emt 0:08:57]} Be6 {[%emt 0:06:56]} 22. Qc2 {[%emt 0:02:54]} Qf6 {[%emt 0:01:11]} 23. h4 {[%emt 0:01:51]} Nf7 {[%emt 0:01:17]} 24. g3 {[%emt 0:05:13]} Rad8 {[%emt 0:04:51]} 25. Nd1 $2 {[%emt 0:06:28]} (25. Be3 {is a better chance.}) 25... f4 {[%emt 0:02:21]} 26. g4 $19 {[%emt 0:04:40]} e3 {[%emt 0:03:36]} 27. Bc3 {[%emt 0:01:10]} f3 {[%emt 0:01:33]} 28. Bd3 {[%emt 0:02:55]} Bxc3+ {[%emt 0:01:51]} 29. Qxc3 {[%emt 0:03:26]} Ne5 {[%emt 0:00:31]} 30. Be4 {[%emt 0:00:33]} e2 {[%emt 0:07:04]} 31. Ne3 {[%emt 0:00:15]} Qf4 {[%emt 0:00:59]} 32. Bc2 {[%emt 0:03:02]} Nxg4 {[%emt 0:01:54]} 33. Ba4 {[%emt 0:05:18]} Nxe3 {[%emt 0:01:10]} 0-1

[Event "POR-chT 1st Divison 2018"]
[Site "Maia"]
[Date "2018.07.16"]
[Round "1"]
[White "Cruz, Jorge Filipe Egas"]
[Black "Novais, Carlos Joao Fernand"]
[Result "1-0"]
[ECO "C07"]
[WhiteElo "2159"]
[BlackElo "2121"]
[Annotator "NA"]
[PlyCount "95"]
[EventDate "2018.07.16"]
[EventType "team-tourn"]
[EventCountry "POR"]
[SourceTitle "playchess.com"]
[Source "ChessBase"]
[SourceQuality "1"]
[TimeControl "5400+30"]

1. e4 {[%emt 0:00:00]} e6 {[%emt 0:00:00]} 2. d4 {[%emt 0:00:05]} d5 {[%emt 0:00:00]} 3. Nd2 {[%emt 0:00:16]} c5 {[%emt 0:00:36]} 4. exd5 {[%emt 0:01:28]} Qxd5 {[%emt 0:00:14]} 5. dxc5 {[%emt 0:01:16]} Nf6 {[%emt 0:03:43] C07: French Tarrasch: 3...c5, 4 Ngf3 and 4 exd5 Qxd5} (5... Bxc5 6. Ngf3 Nf6 7. Bc4 Qc6 8. Qe2 O-O 9. Nb3 Nbd7 10. Bf4 Bd6 11. Nbd4 Qb6 12. Bxd6 Qxd6 13. O-O-O Qf4+ 14. Kb1 Nb6 15. Bb3 {0-1 (28) Naiditsch,A (2705)-Le,Q (2737) Riadh 2017}) 6. Ngf3 {[%emt 0:03:14]} Qxc5 {[%emt 0:00:53]} 7. Bd3 {[%emt 0:03:38]} Nbd7 {[%emt 0:02:56]} 8. O-O {[%emt 0:01:37]} Qc7 {[%emt 0:00:23]} 9. Re1 {[%emt 0:05:04]} Be7 {[%emt 0:06:22]} 10. b3 {[%emt 0:05:27]} O-O {[%emt 0:18:43]} 11. Bb2 {[%emt 0:01:14]} Nc5 $146 {[%emt 0:00:31]} ({Predecessor:} 11... b6 12. Ne5 Nc5 13. Bf1 {½-½ (29) Stripunsky,A (2536)-Nyzhnyk,I (2612) Philadelphia 2017}) 12. Bc4 {[%emt 0:14:45]} b6 {[%emt 0:05:40]} 13. Qe2 {[%emt 0:13:47]} Bb7 {[%emt 0:10:21]} 14. Ne5 {[%emt 0:07:55]} Nce4 {[%emt 0:18:24]} 15. Rad1 {[%emt 0:07:53]} Bd6 {[%emt 0:04:03]} 16. Ng4 {[%emt 0:12:58]} Rad8 {[%emt 0:11:54]} 17. Nxe4 {[%emt 0:10:43]} Nxe4 {[%emt 0:00:07]} 18. Rd4 {[%emt 0:00:56]} b5 {[%emt 0:06:08]} 19. Rxe4 {[%emt 0:04:00]} Bxe4 {[%emt 0:00:55]} 20. Qxe4 {[%emt 0:00:25]} Qc5 {[%emt 0:03:20]} 21. Bd3 {[%emt 0:01:08]} Qh5 {[%emt 0:00:25]} 22. Qf3 {[%emt 0:01:37]} Qh4 {[%emt 0:01:55]} 23. Re4 {[%emt 0:00:43]} f5 {[%emt 0:01:21]} 24. Nf6+ {[%emt 0:01:04]} Qxf6 {[%emt 0:00:13]} 25. Bxf6 {[%emt 0:00:03]} fxe4 {[%emt 0:00:12]} 26. Qxe4 {[%emt 0:00:22]} Rxf6 {[%emt 0:00:08]} 27. Qxh7+ {[%emt 0:00:04]} Kf7 {[%emt 0:00:10]} 28. Qh5+ {[%emt 0:00:12]} Kg8 {[%emt 0:00:40]} 29. Qxb5 {[%emt 0:00:16]} Rdf8 {[%emt 0:00:39]} 30. f3 {[%emt 0:00:21]} Rh6 {[%emt 0:00:39]} 31. h3 {[%emt 0:00:16]} Bg3 {[%emt 0:00:47]} 32. Qg5 {[%emt 0:00:36]} Bf4 {[%emt 0:00:10]} 33. Qc5 {[%emt 0:00:24]} Rf7 {[%emt 0:01:03]} 34. Qc8+ {[%emt 0:00:16]} Rf8 {[%emt 0:00:07]} 35. Qc5 {[%emt 0:00:08]} Rf7 {[%emt 0:00:04]} 36. Bc4 {[%emt 0:00:45]} Bc7 {[%emt 0:01:15]} 37. Kf1 {[%emt 0:00:32]} Bb6 {[%emt 0:01:47]} 38. Qc8+ {[%emt 0:00:18]} Kh7 {[%emt 0:00:12]} 39. Bd3+ {[%emt 0:00:38]} g6 {[%emt 0:00:09]} 40. Qxe6 {[%emt 0:00:14]} Rg7 {[%emt 0:01:07]} 41. c4 {[%emt 0:01:46]} Rh5 {[%emt 0:00:37]} 42. b4 {[%emt 0:00:16]} Bd4 {[%emt 0:00:12]} 43. Be4 {[%emt 0:00:36]} Bc3 {[%emt 0:00:29]} 44. a3 {[%emt 0:00:44]} Re5 {[%emt 0:00:28]} 45. Qd6 {[%emt 0:00:30]} Kh6 $18 {[%emt 0:01:15]} 46. c5 {[%emt 0:00:19]} Ree7 {[%emt 0:00:14]} 47. Qf4+ {[%emt 0:00:43]} Kh7 {[%emt 0:00:10]} 48. Qh4+ {[%emt 0:00:10]} 1-0

[Event "POR-chT 1st Divison 2018"]
[Site "Maia"]
[Date "2018.07.16"]
[Round "1"]
[White "Reis, Luis Sousa"]
[Black "Eggert, Alberto"]
[Result "0-1"]
[ECO "E38"]
[WhiteElo "2150"]
[BlackElo "2142"]
[Annotator "NA"]
[PlyCount "56"]
[EventDate "2018.07.16"]
[EventType "team-tourn"]
[EventCountry "POR"]
[SourceTitle "playchess.com"]
[Source "ChessBase"]
[SourceQuality "1"]
[TimeControl "5400+30"]

1. d4 {[%emt 0:00:00]} Nf6 {[%emt 0:01:57]} 2. c4 {[%emt 0:07:07]} e6 {[%emt 0:03:27]} 3. Nc3 {[%emt 0:01:11]} Bb4 {[%emt 0:00:57]} 4. Qc2 {[%emt 0:06:21]} c5 {[%emt 0:08:17]} 5. e3 {[%emt 0:13:12]} Nc6 {[%emt 0:13:26] LiveBook: 11 Games} 6. Nf3 {[%emt 0:01:04]} d5 {[%emt 0:14:17]} 7. a3 {[%emt 0:04:50]} Bxc3+ {[%emt 0:14:02] E38: Nimzoindisch (4.Dc2)} 8. bxc3 {[%emt 0:00:56]} O-O {[%emt 0:03:08]} 9. Bb2 {[%emt 0:25:46]} (9. a4 Re8 10. Be2 Bd7 11. O-O Rc8 12. cxd5 exd5 13. dxc5 Ne4 {½-½ (36) Mamedyarov,S (2799)-Vidit,S (2715) Riadh 2017}) 9... Re8 $146 {[%emt 0:14:24]} ({Vorgänger:} 9... b6 10. cxd5 exd5 11. Bb5 {½-½ (11) Keresztes,R (2254)-Ilincic,Z (2443) Kecskemet 2013}) 10. Be2 {[%emt 0:06:04]} dxc4 {[%emt 0:06:20]} 11. Bxc4 {[%emt 0:01:17]} Na5 {[%emt 0:00:16]} 12. Be2 {[%emt 0:02:00]} Bd7 {[%emt 0:07:12]} 13. O-O {[%emt 0:01:52]} Rc8 {[%emt 0:01:01]} 14. Ne5 {[%emt 0:06:03]} cxd4 {[%emt 0:02:16]} 15. exd4 {[%emt 0:00:33]} Bc6 {[%emt 0:00:16]} 16. Nxc6 {[%emt 0:02:47]} Nxc6 {[%emt 0:00:12]} 17. Qa4 {[%emt 0:12:10]} Qa5 {[%emt 0:01:29]} 18. Bb5 {[%emt 0:01:27]} Qxa4 {[%emt 0:00:17]} 19. Bxa4 {[%emt 0:00:05]} Red8 {[%emt 0:00:12]} 20. Bxc6 {[%emt 0:01:14]} Rxc6 {[%emt 0:00:07]} 21. a4 {[%emt 0:01:46]} Ne4 {[%emt 0:02:32]} 22. Rfc1 {[%emt 0:00:53]} Rdc8 {[%emt 0:00:17]} 23. Ra3 {[%emt 0:01:13]} Nd2 {[%emt 0:00:38]} 24. f3 {[%emt 0:00:32]} Rb6 {[%emt 0:01:36]} 25. Ba1 {[%emt 0:00:43]} Kf8 {[%emt 0:02:04]} 26. Kf2 {[%emt 0:00:50]} Ke7 {[%emt 0:00:16]} 27. Ke2 $17 {[%emt 0:00:30]} Nb3 {[%emt 0:00:14]} 28. Rb1 {[%emt 0:00:41]} Nxd4+ {[%emt 0:00:10]} 0-1

[Event "POR-chT 1st Divison 2018"]
[Site "Maia"]
[Date "2018.07.16"]
[Round "1"]
[White "Dias, Ivo Rodrigues"]
[Black "Neves, Pedro Alexandre Mai"]
[Result "1-0"]
[ECO "B40"]
[WhiteElo "2138"]
[BlackElo "2236"]
[Annotator "NA"]
[PlyCount "67"]
[EventDate "2018.07.16"]
[EventType "team-tourn"]
[EventCountry "POR"]
[SourceTitle "playchess.com"]
[Source "ChessBase"]
[SourceQuality "1"]
[TimeControl "5400+30"]

1. e4 {[%emt 0:00:00]} c5 {[%emt 0:00:00]} 2. Nf3 {[%emt 0:00:00]} e6 {[%emt 0:00:00]} 3. b3 {[%emt 0:01:16]} Nc6 {[%emt 0:03:06]} 4. Bb2 {[%emt 0:00:10]} a6 {[%emt 0:00:24]} 5. g3 {[%emt 0:02:31]} d6 {[%emt 0:07:10] B40: Sicilian: 2...e6, Unusual lines} (5... d5 6. exd5 exd5 7. Qe2+ Qe7 8. Qxe7+ Ngxe7 9. Bg2 Bf5 10. O-O O-O-O 11. Nc3 h6 12. Na4 Ng6 13. d4 Bxc2 {½-½ (29) Nisipeanu,L (2668)-Markus,R (2662) Ortisei 2016}) 6. Bg2 {[%emt 0:00:27]} b5 {[%emt 0:00:24]} 7. O-O {[%emt 0:00:33]} Bb7 {[%emt 0:01:40]} 8. d4 {[%emt 0:06:56]} cxd4 {[%emt 0:00:10]} 9. Nxd4 {[%emt 0:00:07]} Qc7 {[%emt 0:04:08]} 10. a4 {[%emt 0:09:34]} bxa4 $146 {[%emt 0:28:30]} ({Predecessor:} 10... Nxd4 11. Qxd4 Nf6 12. axb5 axb5 13. Nc3 Rxa1 14. Rxa1 {1-0 (24) Kovalevskaya,E (2350)-Dorofeeva,A (2275) Elista 1997}) 11. Rxa4 {[%emt 0:01:01]} Nf6 {[%emt 0:00:38]} 12. Nc3 {[%emt 0:02:58]} Nd7 {[%emt 0:11:57]} ({Black should try} 12... Nxd4 $14 13. Qxd4 (13. Rxd4 Be7 $14) 13... Be7) 13. Nxc6 {[%emt 0:28:20]} (13. Rc4 $16) 13... Bxc6 {[%emt 0:01:08]} 14. Ra2 {[%emt 0:00:23]} Be7 {[%emt 0:04:47]} 15. Qe2 {[%emt 0:01:21]} Bb7 {[%emt 0:04:25]} 16. Na4 {[%emt 0:10:06]} O-O {[%emt 0:00:55]} 17. Bd4 {[%emt 0:03:15]} Qc6 {[%emt 0:11:39]} 18. c4 {[%emt 0:09:36]} Bf6 {[%emt 0:01:12]} 19. Rd1 {[%emt 0:05:48]} Bxd4 {[%emt 0:04:53]} 20. Rxd4 {[%emt 0:00:10]} Nc5 {[%emt 0:00:07]} 21. Nxc5 {[%emt 0:01:43]} dxc5 {[%emt 0:00:07]} 22. Rd3 {[%emt 0:00:09]} Qb6 {[%emt 0:07:55]} 23. Qd1 {[%emt 0:00:56]} Rad8 {[%emt 0:00:39]} 24. Rad2 {[%emt 0:00:22]} Rxd3 {[%emt 0:00:09]} 25. Rxd3 {[%emt 0:00:01]} h6 {[%emt 0:00:55]} 26. h4 {[%emt 0:00:43]} Bc6 {[%emt 0:02:20]} 27. Rd6 {[%emt 0:03:40]} Qb7 {[%emt 0:00:05]} 28. Qd3 {[%emt 0:00:43]} a5 {[%emt 0:02:28]} 29. Qe3 {[%emt 0:00:53]} Ra8 {[%emt 0:00:59]} 30. Qxc5 {[%emt 0:00:47]} Rc8 {[%emt 0:01:27]} 31. Qxa5 {[%emt 0:02:42]} Qxb3 {[%emt 0:00:23]} 32. Rxc6 {[%emt 0:00:30]} Qd1+ $18 {[%emt 0:00:46]} 33. Kh2 {[%emt 0:00:08]} Rxc6 {[%emt 0:00:28]} 34. Qa8+ {[%emt 0:00:02]} 1-0

[Event "POR-chT 1st Divison 2018"]
[Site "Maia"]
[Date "2018.07.16"]
[Round "1"]
[White "Romano, Luis Miguel Pereira"]
[Black "Cavaleiro, Daniel Filipe Costa"]
[Result "1-0"]
[ECO "B07"]
[WhiteElo "2083"]
[BlackElo "1987"]
[Annotator "NA"]
[PlyCount "65"]
[EventDate "2018.07.16"]
[EventType "team-tourn"]
[EventCountry "POR"]
[SourceTitle "playchess.com"]
[Source "ChessBase"]
[SourceQuality "1"]
[TimeControl "5400+30"]

1. e4 {[%emt 0:00:00]} g6 {[%emt 0:00:30]} 2. d4 {[%emt 0:00:00]} d6 {[%emt 0:00:12]} 3. Nc3 {[%emt 0:00:00]} Nf6 {[%emt 0:00:17]} 4. Be3 {[%emt 0:00:36]} c6 {[%emt 0:00:28]} 5. f3 {[%emt 0:00:24]} Bg7 {[%emt 0:06:02]} 6. Qd2 {[%emt 0:00:08]} b5 {[%emt 0:02:32]} 7. g4 {[%emt 0:01:09]} O-O {[%emt 0:13:56]} 8. O-O-O {[%emt 0:11:47]} b4 {[%emt 0:14:17] B07: Pirc Defence: Miscellaneous Systems} 9. Nce2 {[%emt 0:01:05]} Qa5 {[%emt 0:01:53]} 10. Kb1 $1 {[%emt 0:01:06] LiveBook: 5 Games} Nbd7 {[%emt 0:11:57]} (10... Be6 $14 11. Nc1 Nbd7) (10... c5 11. Bh6 Nc6 12. Bxg7 Kxg7 13. g5 Nd7 14. d5 Nce5 15. Nc1 Nb6 16. h4 {1-0 (33) Najer,E (2664)-Petrosian,T (2607) Moscow 2016 CBM 171 [Schulz,André]}) 11. Bh6 {[%emt 0:04:34]} Nb6 {[%emt 0:02:26]} 12. Bxg7 {[%emt 0:12:14]} Kxg7 {[%emt 0:00:11]} 13. a3 $146 {[%emt 0:02:15]} ({Predecessor:} 13. Nc1 Ba6 14. Bxa6 Qxa6 15. Nge2 Nc4 16. Qd3 d5 17. e5 Nd7 18. Nb3 Ndb6 19. Nc5 {1-0 (45) Izquierdo,D (2148)-Cao,J (1984) Montevideo 2016}) 13... c5 {[%emt 0:07:07]} 14. Nc1 {[%emt 0:10:25]} Na4 {[%emt 0:10:39]} 15. axb4 {[%emt 0:10:39]} cxb4 {[%emt 0:03:09]} 16. Nb3 {[%emt 0:02:45]} Qb6 {[%emt 0:01:00]} 17. g5 {[%emt 0:02:05]} Nh5 {[%emt 0:04:08]} 18. Ne2 {[%emt 0:00:28]} a5 {[%emt 0:02:18]} 19. Ng3 {[%emt 0:01:16]} Bd7 {[%emt 0:04:31]} 20. Nxh5+ {[%emt 0:05:57]} gxh5 $11 {[%emt 0:00:02]} 21. d5 {[%emt 0:00:28]} Rfc8 {[%emt 0:01:41]} 22. f4 {[%emt 0:03:15]} Bg4 {[%emt 0:02:04]} 23. Re1 {[%emt 0:00:14]} Bf3 {[%emt 0:03:12]} 24. Bg2 {[%emt 0:02:58]} Bxg2 {[%emt 0:00:09]} 25. Qxg2 {[%emt 0:00:06]} Nxb2 {[%emt 0:00:10]} 26. Kxb2 {[%emt 0:01:02]} a4 {[%emt 0:00:09]} 27. Nc1 {[%emt 0:07:58]} Qd4+ {[%emt 0:00:44]} 28. Kb1 {[%emt 0:00:07]} a3 {[%emt 0:01:10]} 29. c3 {[%emt 0:01:16]} bxc3 {[%emt 0:06:38]} 30. Qc2 {[%emt 0:07:27]} a2+ 31. Ka1 Rab8 {[%emt 0:01:15]} 32. Nd3 {[%emt 0:09:53]} Rb2 {[%emt 0:00:33]} 33. Nxb2 {[%emt 0:00:17]} 1-0

[Event "POR-chT 1st Divison 2018"]
[Site "Maia"]
[Date "2018.07.16"]
[Round "1"]
[White "Turcer, Dusan"]
[Black "Marchena Hurtado, Javier"]
[Result "1-0"]
[ECO "C24"]
[WhiteElo "2039"]
[BlackElo "2354"]
[Annotator "NA"]
[PlyCount "45"]
[EventDate "2018.07.16"]
[EventType "team-tourn"]
[EventCountry "POR"]
[SourceTitle "playchess.com"]
[Source "ChessBase"]
[SourceQuality "1"]
[TimeControl "5400+30"]

1. e4 {[%emt 0:00:00]} e5 {[%emt 0:00:00]} 2. f4 {[%emt 0:00:00]} exf4 {[%emt 0:00:00]} 3. Bc4 {[%emt 0:00:00]} Nf6 {[%emt 0:01:11]} 4. Nc3 {[%emt 0:00:00]} c6 {[%emt 0:00:52]} 5. Bb3 {[%emt 0:00:05]} d5 {[%emt 0:00:54]} 6. exd5 {[%emt 0:00:13]} cxd5 {[%emt 0:00:46]} 7. d4 {[%emt 0:00:09]} Bd6 {[%emt 0:03:57]} 8. Nge2 {[%emt 0:07:59] C33: King's Gambit Accepted: 3 Nc3 and 3 Bc4} f3 {[%emt 0:06:09]} 9. gxf3 {[%emt 0:00:09]} O-O {[%emt 0:02:40]} 10. Bg5 {[%emt 0:01:59]} Be6 {[%emt 0:15:23]} 11. Qd2 {[%emt 0:09:26]} Be7 {[%emt 0:03:29]} 12. Rg1 {[%emt 0:01:33]} (12. O-O-O Nc6 13. Nf4 Na5 14. Rhe1 Nxb3+ 15. axb3 h6 {1-0 (28) Ivanchuk,V (2731)-Giri,A (2734) Beijing 2013}) 12... Nc6 {[%emt 0:08:21]} 13. O-O-O {[%emt 0:02:10]} Kh8 {[%emt 0:05:14]} 14. Kb1 $146 {[%emt 0:06:08]} ({Predecessor:} 14. Nf4 Na5 15. Bxf6 Nxb3+ 16. axb3 Bxf6 {½-½ (57) Zill,C (2213)-Tueckmantel,R (2130) Dortmund 2017}) 14... Na5 {[%emt 0:02:08]} 15. Nf4 {[%emt 0:05:45]} Nxb3 {[%emt 0:02:26]} 16. axb3 {[%emt 0:00:09]} Rc8 {[%emt 0:03:28]} 17. Qg2 {[%emt 0:06:19]} Rg8 {[%emt 0:04:36]} 18. Rde1 {[%emt 0:08:32]} Rc6 {[%emt 0:07:17]} 19. Nxe6 {[%emt 0:05:48]} fxe6 $16 {[%emt 0:03:12]} 20. Qh3 {[%emt 0:09:14]} Qd7 {[%emt 0:13:16]} 21. Re5 {[%emt 0:07:18]} Bd8 {[%emt 0:03:43]} 22. Bxf6 {[%emt 0:02:40]} Bxf6 {[%emt 0:00:22]} 23. Qxh7+ {[%emt 0:00:06]} 1-0

[Event "POR-chT 1st Divison 2018"]
[Site "Maia"]
[Date "2018.07.17"]
[Round "2"]
[White "Fernandes, Antonio"]
[Black "Cruz, Jorge Filipe Egas"]
[Result "1-0"]
[ECO "E08"]
[WhiteElo "2403"]
[BlackElo "2159"]
[Annotator "NA"]
[PlyCount "85"]
[EventDate "2018.07.16"]
[EventType "team-tourn"]
[EventCountry "POR"]
[SourceTitle "playchess.com"]
[Source "ChessBase"]
[SourceQuality "1"]
[TimeControl "5400+30"]

1. Nf3 {[%emt 0:00:00]} d5 {[%emt 0:01:46]} 2. g3 {[%emt 0:00:00]} Nf6 {[%emt 0:01:32]} 3. Bg2 {[%emt 0:00:00]} e6 {[%emt 0:00:07]} 4. O-O {[%emt 0:00:00]} Be7 {[%emt 0:00:05]} 5. d4 {[%emt 0:00:00]} O-O {[%emt 0:00:16]} 6. c4 {[%emt 0:00:07]} Nbd7 {[%emt 0:00:29]} 7. Qc2 {[%emt 0:01:32]} c6 {[%emt 0:00:57]} 8. b3 {[%emt 0:00:26]} b6 {[%emt 0:00:55]} 9. Nc3 {[%emt 0:02:15]} Ba6 {[%emt 0:05:58]} 10. Nd2 {[%emt 0:05:43] LiveBook: 15 Games} Rc8 {[%emt 0:03:18]} 11. e4 {[%emt 0:11:36]} Qc7 $14 {[%emt 0:15:23]} ({Besser ist} 11... b5 $11) 12. Re1 {[%emt 0:14:13]} Bb7 {[%emt 0:19:11]} 13. Bb2 {[%emt 0:04:55]} Rfd8 {[%emt 0:05:04]} 14. Rad1 {[%emt 0:12:34]} Qb8 {[%emt 0:04:59]} 15. Qb1 {[%emt 0:09:31]} Qa8 {[%emt 0:05:16]} 16. a3 {[%emt 0:02:19]} Bf8 {[%emt 0:02:29]} 17. Nf1 {[%emt 0:12:01]} c5 {[%emt 0:10:01]} 18. cxd5 {[%emt 0:06:09]} exd5 {[%emt 0:04:37]} 19. e5 {[%emt 0:01:53]} cxd4 {[%emt 0:07:56]} 20. Rxd4 {[%emt 0:00:51]} Ne4 {[%emt 0:02:48]} 21. Nxe4 {[%emt 0:06:05]} dxe4 {[%emt 0:00:26]} 22. Bxe4 {[%emt 0:00:32]} Bxe4 {[%emt 0:00:50]} 23. Rdxe4 {[%emt 0:00:26]} Nc5 {[%emt 0:01:36]} 24. R4e3 {[%emt 0:00:21]} Qd5 {[%emt 0:01:08]} 25. b4 {[%emt 0:01:39]} Ne6 {[%emt 0:00:41]} 26. h4 {[%emt 0:00:17]} a5 {[%emt 0:02:40]} 27. Bc3 {[%emt 0:01:23]} axb4 {[%emt 0:02:04]} 28. axb4 {[%emt 0:00:27]} Rc4 {[%emt 0:00:29]} 29. Qb3 {[%emt 0:03:52]} b5 {[%emt 0:00:52]} 30. R1e2 {[%emt 0:03:21]} Nd4 {[%emt 0:00:31]} 31. Bxd4 {[%emt 0:00:14]} Rxd4 {[%emt 0:00:23]} 32. Qxd5 {[%emt 0:00:34]} R8xd5 {[%emt 0:00:10]} 33. e6 {[%emt 0:00:22]} fxe6 {[%emt 0:00:05]} 34. Rxe6 {[%emt 0:00:05]} Rxb4 {[%emt 0:00:45]} 35. Re8 {[%emt 0:00:25]} Rb1 {[%emt 0:01:01]} 36. Kg2 {[%emt 0:00:23]} Kf7 {[%emt 0:00:14]} 37. Rb8 {[%emt 0:00:26]} Bc5 {[%emt 0:00:53]} 38. Rb7+ {[%emt 0:00:38]} Kf6 {[%emt 0:00:12]} 39. Nd2 {[%emt 0:00:24]} Rd1 {[%emt 0:00:41]} 40. Ne4+ {[%emt 0:00:41]} Kg6 {[%emt 0:00:19]} 41. Nc3 {[%emt 0:00:21]} R1d2 {[%emt 0:00:24]} 42. Nxd5 {[%emt 0:00:04]} Rxd5 {[%emt 0:00:40]} 43. Rxb5 {[%emt 0:00:04]} 1-0